[Event "Titled Tuesday Blitz August 31 2021"]
[White "Shuvalov, Evgenij"]
[Black "Pandey Srishti"]
[WhiteFideId "4187237"]
[BlackFideId "35093290"]
[WhiteElo "2163"]
[BlackElo "1816"]
[Result "1-0"]
[Round "09"]
[TimeControl "180+1"]
[Date "2021.08.31"]
[WhiteClock "0:00:12"]
[BlackClock "0:00:13"]

1. Nf3 {[%clk 0:02:47]}  Nf6 {[%clk 0:02:58]} 2. c4 {[%clk 0:02:46]}  c6 {[%clk 0:02:56]} 3. g3 {[%clk 0:02:46]}  d5 {[%clk 0:02:56]} 4. Bg2 {[%clk 0:02:46]}  Bf5 {[%clk 0:02:54]} 5. cxd5 {[%clk 0:02:45]}  cxd5 {[%clk 0:02:54]} 6. Qb3 {[%clk 0:02:45]}  Qb6 {[%clk 0:02:53]} 7. Qxb6 {[%clk 0:02:44]}  axb6 {[%clk 0:02:54]} 8. Nc3 {[%clk 0:02:45]}  e6 {[%clk 0:02:52]} 9. d3 {[%clk 0:02:44]}  h6 {[%clk 0:02:51]} 10. Nb5 {[%clk 0:02:43]}  Na6 {[%clk 0:02:50]} 11. O-O {[%clk 0:02:41]}  Bc5 {[%clk 0:02:40]} 12. a3 {[%clk 0:02:35]}  O-O {[%clk 0:02:39]} 13. Bf4 {[%clk 0:02:32]}  Rfc8 {[%clk 0:02:37]} 14. b4 {[%clk 0:02:28]}  Be7 {[%clk 0:02:35]} 15. Rfc1 {[%clk 0:02:24]}  Nd7 {[%clk 0:02:31]} 16. Bd6 {[%clk 0:02:05]}  Bf6 {[%clk 0:02:27]} 17. Rab1 {[%clk 0:02:04]}  Rc6 {[%clk 0:02:25]} 18. Bf4 {[%clk 0:01:50]}  Rac8 {[%clk 0:02:18]} 19. Nd6 {[%clk 0:01:42]}  Rxc1+ {[%clk 0:01:56]} 20. Rxc1 {[%clk 0:01:43]}  Rxc1+ {[%clk 0:01:56]} 21. Bxc1 {[%clk 0:01:44]}  Kf8 {[%clk 0:01:41]} 22. Nxf5 {[%clk 0:01:19]}  exf5 {[%clk 0:01:42]} 23. d4 {[%clk 0:01:18]}  Nc7 {[%clk 0:01:39]} 24. a4 {[%clk 0:01:12]}  b5 {[%clk 0:01:37]} 25. a5 {[%clk 0:01:09]}  Ke7 {[%clk 0:01:37]} 26. e3 {[%clk 0:01:04]}  Na6 {[%clk 0:01:36]} 27. Bd2 {[%clk 0:01:04]}  Kd6 {[%clk 0:01:35]} 28. Ne1 {[%clk 0:01:03]}  Ndb8 {[%clk 0:01:29]} 29. Nc2 {[%clk 0:01:00]}  Nc6 {[%clk 0:01:29]} 30. Bf1 {[%clk 0:00:59]}  Nc7 {[%clk 0:01:27]} 31. Na3 {[%clk 0:00:58]}  Na6 {[%clk 0:01:23]} 32. Nxb5+ {[%clk 0:00:53]}  Kd7 {[%clk 0:01:16]} 33. Bd3 {[%clk 0:00:29]}  g6 {[%clk 0:01:14]} 34. Kf1 {[%clk 0:00:28]}  Naxb4 {[%clk 0:01:12]} 35. Bb1 {[%clk 0:00:23]}  Na6 {[%clk 0:01:11]} 36. Ke2 {[%clk 0:00:23]}  Bd8 {[%clk 0:01:11]} 37. Ba2 {[%clk 0:00:22]}  Nab4 {[%clk 0:01:08]} 38. Bb3 {[%clk 0:00:19]}  Bxa5 {[%clk 0:01:07]} 39. Nc3 {[%clk 0:00:17]}  Kd6 {[%clk 0:00:59]} 40. Nb5+ {[%clk 0:00:17]}  Ke6 {[%clk 0:00:57]} 41. Nc3 {[%clk 0:00:17]}  Ne7 {[%clk 0:00:53]} 42. Na4 {[%clk 0:00:17]}  Nec6 {[%clk 0:00:49]} 43. Nc5+ {[%clk 0:00:16]}  Ke7 {[%clk 0:00:46]} 44. Nxb7 {[%clk 0:00:17]}  Bb6 {[%clk 0:00:44]} 45. Nc5 {[%clk 0:00:17]}  Kd6 {[%clk 0:00:42]} 46. Na4 {[%clk 0:00:16]}  Bd8 {[%clk 0:00:40]} 47. Nc3 {[%clk 0:00:17]}  Bf6 {[%clk 0:00:36]} 48. h4 {[%clk 0:00:17]}  g5 {[%clk 0:00:35]} 49. Nb5+ {[%clk 0:00:18]}  Kd7 {[%clk 0:00:34]} 50. h5 {[%clk 0:00:18]}  Be7 {[%clk 0:00:28]} 51. Bc2 {[%clk 0:00:18]}  Ke6 {[%clk 0:00:27]} 52. Bb1 {[%clk 0:00:17]}  Na6 {[%clk 0:00:27]} 53. Nc3 {[%clk 0:00:17]}  Nc7 {[%clk 0:00:26]} 54. Ba2 {[%clk 0:00:17]}  Nb4 {[%clk 0:00:25]} 55. Bb3 {[%clk 0:00:16]}  Nc6 {[%clk 0:00:25]} 56. f3 {[%clk 0:00:15]}  Bd6 {[%clk 0:00:24]} 57. Kd3 {[%clk 0:00:15]}  Bxg3 {[%clk 0:00:22]} 58. Nxd5 {[%clk 0:00:15]}  Nxd5 {[%clk 0:00:20]} 59. e4 {[%clk 0:00:16]}  fxe4+ {[%clk 0:00:20]} 60. fxe4 {[%clk 0:00:16]}  Kd6 {[%clk 0:00:19]} 61. Bxd5 {[%clk 0:00:16]}  Nd8 {[%clk 0:00:19]} 62. Bc4 {[%clk 0:00:14]}  f6 {[%clk 0:00:17]} 63. Bb4+ {[%clk 0:00:14]}  Kd7 {[%clk 0:00:17]} 64. Bf8 {[%clk 0:00:14]}  Ne6 {[%clk 0:00:16]} 65. Bxe6+ {[%clk 0:00:11]}  Kxe6 {[%clk 0:00:17]} 66. Bxh6 {[%clk 0:00:11]}  Bf2 {[%clk 0:00:16]} 67. Bg7 {[%clk 0:00:11]}  Kf7 {[%clk 0:00:16]} 68. h6 {[%clk 0:00:12]}  Kg6 {[%clk 0:00:16]} 69. Kc4 {[%clk 0:00:11]}  Be3 {[%clk 0:00:16]} 70. d5 {[%clk 0:00:11]}  Bf4 {[%clk 0:00:14]} 71. Kc5 {[%clk 0:00:11]}  g4 {[%clk 0:00:15]} 72. d6 {[%clk 0:00:11]}  Bxd6+ {[%clk 0:00:15]} 73. Kxd6 {[%clk 0:00:12]}  g3 {[%clk 0:00:15]} 74. Bxf6 {[%clk 0:00:11]}  Kxf6 {[%clk 0:00:14]} 75. e5+ {[%clk 0:00:11]}  Kf5 {[%clk 0:00:14]} 76. h7 {[%clk 0:00:11]}  g2 {[%clk 0:00:15]} 77. h8=Q {[%clk 0:00:11]}  g1=Q {[%clk 0:00:16]} 78. Qf6+ {[%clk 0:00:11]}  Ke4 {[%clk 0:00:16]} 79. e6 {[%clk 0:00:11]}  Qb6+ {[%clk 0:00:15]} 80. Kd7 {[%clk 0:00:11]}  Qb7+ {[%clk 0:00:15]} 81. Ke8 {[%clk 0:00:11]}  Qc8+ {[%clk 0:00:15]} 82. Kf7 {[%clk 0:00:11]}  Qc7+ {[%clk 0:00:14]} 83. e7 {[%clk 0:00:12]}  Qc8 {[%clk 0:00:12]} 84. Qe6+ {[%clk 0:00:11]}  Qxe6+ {[%clk 0:00:12]} 85. Kxe6 {[%clk 0:00:12]}  Kd4 {[%clk 0:00:13]} 86. e8=Q {[%clk 0:00:12]} 1-0


[Site "https://www.chess.com"]

[Event "Titled Tuesday Blitz August 31 2021"]
[White "Skaric, Djuro"]
[Black "Gelman, Alexander"]
[WhiteFideId "934569"]
[BlackFideId "4118316"]
[WhiteElo "2239"]
[BlackElo "2375"]
[Result "0-1"]
[Round "09"]
[TimeControl "180+1"]
[Date "2021.08.31"]
[WhiteClock "0:00:09"]
[BlackClock "0:00:14"]

1. e4 {[%clk 0:03:00]}  c5 {[%clk 0:03:00]} 2. Nc3 {[%clk 0:03:00]}  e6 {[%clk 0:03:00]} 3. g3 {[%clk 0:03:00]}  Nc6 {[%clk 0:03:00]} 4. Bg2 {[%clk 0:03:00]}  Nf6 {[%clk 0:03:00]} 5. d3 {[%clk 0:03:00]}  d6 {[%clk 0:03:00]} 6. f4 {[%clk 0:02:57]}  Be7 {[%clk 0:03:00]} 7. Nge2 {[%clk 0:02:58]}  O-O {[%clk 0:03:01]} 8. O-O {[%clk 0:02:58]}  Rb8 {[%clk 0:03:01]} 9. h3 {[%clk 0:02:57]}  Bd7 {[%clk 0:02:59]} 10. g4 {[%clk 0:02:57]}  h6 {[%clk 0:03:00]} 11. Ng3 {[%clk 0:02:54]}  b5 {[%clk 0:03:00]} 12. Nce2 {[%clk 0:02:54]}  b4 {[%clk 0:03:00]} 13. g5 {[%clk 0:02:53]}  hxg5 {[%clk 0:03:00]} 14. fxg5 {[%clk 0:02:53]}  Nh7 {[%clk 0:03:00]} 15. h4 {[%clk 0:02:53]}  Ne5 {[%clk 0:02:54]} 16. Nf4 {[%clk 0:02:50]}  Qe8 {[%clk 0:02:46]} 17. Bh3 {[%clk 0:02:36]}  a5 {[%clk 0:02:39]} 18. b3 {[%clk 0:02:07]}  a4 {[%clk 0:02:32]} 19. Bb2 {[%clk 0:02:03]}  a3 {[%clk 0:02:31]} 20. Bxe5 {[%clk 0:02:02]}  dxe5 {[%clk 0:02:32]} 21. Nfh5 {[%clk 0:02:01]}  f6 {[%clk 0:02:12]} 22. gxf6 {[%clk 0:01:56]}  Nxf6 {[%clk 0:02:09]} 23. Nxf6+ {[%clk 0:01:52]}  Rxf6 {[%clk 0:02:00]} 24. Rxf6 {[%clk 0:01:45]}  Bxf6 {[%clk 0:01:58]} 25. Qg4 {[%clk 0:01:43]}  Qe7 {[%clk 0:01:38]} 26. Nh5 {[%clk 0:01:16]}  Bxh4 {[%clk 0:01:32]} 27. Kh1 {[%clk 0:01:16]}  Rf8 {[%clk 0:01:11]} 28. Nxg7 {[%clk 0:01:11]}  Rf4 {[%clk 0:01:07]} 29. Qh5 {[%clk 0:00:59]}  Qxg7 {[%clk 0:00:36]} 30. Rg1 {[%clk 0:00:56]}  Bg3 {[%clk 0:00:36]} 31. Qe2 {[%clk 0:00:20]}  Rf2 {[%clk 0:00:28]} 32. Qxf2 {[%clk 0:00:20]}  Bxf2 {[%clk 0:00:28]} 33. Rxg7+ {[%clk 0:00:20]}  Kxg7 {[%clk 0:00:28]} 34. Kg2 {[%clk 0:00:20]}  Bd4 {[%clk 0:00:27]} 35. Kf3 {[%clk 0:00:20]}  Kf6 {[%clk 0:00:27]} 36. Bg4 {[%clk 0:00:20]}  Be8 {[%clk 0:00:20]} 37. Ke2 {[%clk 0:00:19]}  Bf7 {[%clk 0:00:19]} 38. Kf3 {[%clk 0:00:19]}  Kg5 {[%clk 0:00:19]} 39. Bh3 {[%clk 0:00:18]}  Bc3 {[%clk 0:00:18]} 40. Bg4 {[%clk 0:00:17]}  Be1 {[%clk 0:00:17]} 41. Bh3 {[%clk 0:00:15]}  Bh5+ {[%clk 0:00:17]} 42. Ke3 {[%clk 0:00:14]}  Bg4 {[%clk 0:00:17]} 43. Bxg4 {[%clk 0:00:15]}  Kxg4 {[%clk 0:00:17]} 44. Ke2 {[%clk 0:00:15]}  Bg3 {[%clk 0:00:16]} 45. Kd1 {[%clk 0:00:16]}  Kf3 {[%clk 0:00:16]} 46. Kc1 {[%clk 0:00:17]}  Ke3 {[%clk 0:00:16]} 47. Kb1 {[%clk 0:00:16]}  Kd2 {[%clk 0:00:16]} 48. d4 {[%clk 0:00:08]}  exd4 {[%clk 0:00:16]} 49. e5 {[%clk 0:00:09]}  Bxe5 {[%clk 0:00:14]} 50. Ka1 {[%clk 0:00:10]}  d3+ {[%clk 0:00:14]} 51. Kb1 {[%clk 0:00:09]}  dxc2# {[%clk 0:00:14]} 0-1


[Site "https://www.chess.com"]

[Event "Titled Tuesday Blitz August 31 2021"]
[White "Solon, Nathan"]
[Black "Bazarov, Konstantin"]
[WhiteFideId "2017229"]
[BlackFideId "4137000"]
[WhiteElo "2655"]
[BlackElo "2122"]
[Result "1-0"]
[Round "09"]
[TimeControl "180+1"]
[Date "2021.08.31"]
[WhiteClock "0:00:20"]
[BlackClock "0:00:10"]

1. d4 {[%clk 0:02:57]}  Nf6 {[%clk 0:02:59]} 2. c4 {[%clk 0:02:57]}  d6 {[%clk 0:03:00]} 3. Nf3 {[%clk 0:02:56]}  c6 {[%clk 0:03:00]} 4. g3 {[%clk 0:02:54]}  Nbd7 {[%clk 0:03:01]} 5. Nc3 {[%clk 0:02:53]}  e5 {[%clk 0:03:02]} 6. e4 {[%clk 0:02:53]}  Be7 {[%clk 0:03:02]} 7. Bg2 {[%clk 0:02:53]}  O-O {[%clk 0:03:02]} 8. O-O {[%clk 0:02:54]}  Re8 {[%clk 0:03:02]} 9. h3 {[%clk 0:02:53]}  Bf8 {[%clk 0:03:03]} 10. Re1 {[%clk 0:02:51]}  a6 {[%clk 0:03:02]} 11. Be3 {[%clk 0:02:48]}  b5 {[%clk 0:03:02]} 12. cxb5 {[%clk 0:02:47]}  cxb5 {[%clk 0:03:01]} 13. a3 {[%clk 0:02:44]}  exd4 {[%clk 0:02:54]} 14. Nxd4 {[%clk 0:02:40]}  Bb7 {[%clk 0:02:52]} 15. Nf5 {[%clk 0:02:18]}  Nc5 {[%clk 0:02:30]} 16. Bxc5 {[%clk 0:01:34]}  dxc5 {[%clk 0:02:28]} 17. e5 {[%clk 0:01:35]}  Qxd1 {[%clk 0:02:13]} 18. Raxd1 {[%clk 0:01:34]}  Bxg2 {[%clk 0:02:11]} 19. Kxg2 {[%clk 0:01:34]}  Nh5 {[%clk 0:02:05]} 20. Nd5 {[%clk 0:01:34]}  g6 {[%clk 0:01:47]} 21. Nd6 {[%clk 0:01:34]}  Bxd6 {[%clk 0:01:24]} 22. exd6 {[%clk 0:01:34]}  Rxe1 {[%clk 0:01:24]} 23. Rxe1 {[%clk 0:01:35]}  Rd8 {[%clk 0:01:23]} 24. g4 {[%clk 0:01:28]}  Rxd6 {[%clk 0:01:10]} 25. Ne7+ {[%clk 0:01:26]}  Kf8 {[%clk 0:01:10]} 26. gxh5 {[%clk 0:01:25]}  Rd2 {[%clk 0:01:03]} 27. b4 {[%clk 0:01:14]}  c4 {[%clk 0:01:02]} 28. hxg6 {[%clk 0:01:09]}  hxg6 {[%clk 0:01:00]} 29. Nc6 {[%clk 0:01:08]}  c3 {[%clk 0:00:49]} 30. Rc1 {[%clk 0:01:07]}  c2 {[%clk 0:00:46]} 31. Ne5 {[%clk 0:01:06]}  Ke7 {[%clk 0:00:43]} 32. Nf3 {[%clk 0:01:03]}  Rd3 {[%clk 0:00:42]} 33. Rxc2 {[%clk 0:01:02]}  Rxa3 {[%clk 0:00:43]} 34. Nd4 {[%clk 0:00:55]}  Kd6 {[%clk 0:00:39]} 35. Rd2 {[%clk 0:00:48]}  Ke5 {[%clk 0:00:35]} 36. Nc6+ {[%clk 0:00:46]}  Ke6 {[%clk 0:00:34]} 37. Na5 {[%clk 0:00:44]}  Ra1 {[%clk 0:00:27]} 38. Rc2 {[%clk 0:00:42]}  Rb1 {[%clk 0:00:26]} 39. Nc6 {[%clk 0:00:35]}  Kd6 {[%clk 0:00:24]} 40. Rc3 {[%clk 0:00:29]}  Kd5 {[%clk 0:00:22]} 41. Kf3 {[%clk 0:00:28]}  Rh1 {[%clk 0:00:19]} 42. Kf4 {[%clk 0:00:25]}  Re1 {[%clk 0:00:17]} 43. Kg5 {[%clk 0:00:22]}  Re6 {[%clk 0:00:16]} 44. Na5 {[%clk 0:00:20]}  Kd4 {[%clk 0:00:16]} 45. Rf3 {[%clk 0:00:19]}  f5 {[%clk 0:00:15]} 46. h4 {[%clk 0:00:16]}  Re4 {[%clk 0:00:13]} 47. Rf4 {[%clk 0:00:16]}  Rxf4 {[%clk 0:00:10]} 48. Kxf4 {[%clk 0:00:17]}  Kc3 {[%clk 0:00:10]} 49. Nc6 {[%clk 0:00:17]}  Kc4 {[%clk 0:00:10]} 50. Kg5 {[%clk 0:00:18]}  Kd5 {[%clk 0:00:10]} 51. Na5 {[%clk 0:00:17]}  Ke4 {[%clk 0:00:10]} 52. Kxg6 {[%clk 0:00:17]}  f4 {[%clk 0:00:09]} 53. h5 {[%clk 0:00:18]}  Kf3 {[%clk 0:00:09]} 54. h6 {[%clk 0:00:18]}  Kxf2 {[%clk 0:00:10]} 55. h7 {[%clk 0:00:19]}  f3 {[%clk 0:00:10]} 56. h8=Q {[%clk 0:00:19]}  Ke2 {[%clk 0:00:11]} 57. Qe5+ {[%clk 0:00:19]}  Kd3 {[%clk 0:00:10]} 58. Qf4 {[%clk 0:00:18]}  Ke2 {[%clk 0:00:11]} 59. Qe4+ {[%clk 0:00:19]}  Kf2 {[%clk 0:00:11]} 60. Nb3 {[%clk 0:00:19]}  Kg2 {[%clk 0:00:12]} 61. Nd4 {[%clk 0:00:19]}  Kg3 {[%clk 0:00:11]} 62. Qxf3+ {[%clk 0:00:20]}  Kh4 {[%clk 0:00:10]} 63. Kf5 {[%clk 0:00:19]}  a5 {[%clk 0:00:10]} 64. Qg4# {[%clk 0:00:20]} 1-0


[Site "https://www.chess.com"]

[Event "Titled Tuesday Blitz August 31 2021"]
[White "Starozhilov, Leonid"]
[Black "Alavkin, Arseny"]
[WhiteFideId "14106752"]
[BlackFideId "4120612"]
[WhiteElo "2414"]
[BlackElo "2391"]
[Result "1/2-1/2"]
[Round "09"]
[TimeControl "180+1"]
[Date "2021.08.31"]
[WhiteClock "0:00:42"]
[BlackClock "0:00:50"]

1. b3 {[%clk 0:02:55]}  e5 {[%clk 0:02:59]} 2. Bb2 {[%clk 0:02:55]}  Nc6 {[%clk 0:03:00]} 3. e3 {[%clk 0:02:56]}  Nf6 {[%clk 0:03:00]} 4. Bb5 {[%clk 0:02:56]}  Bd6 {[%clk 0:03:01]} 5. Ne2 {[%clk 0:02:57]}  O-O {[%clk 0:03:00]} 6. Bxc6 {[%clk 0:02:57]}  dxc6 {[%clk 0:02:59]} 7. Nbc3 {[%clk 0:02:58]}  Re8 {[%clk 0:02:59]} 8. Ng3 {[%clk 0:02:57]}  e4 {[%clk 0:02:59]} 9. f3 {[%clk 0:02:57]}  exf3 {[%clk 0:02:56]} 10. Qxf3 {[%clk 0:02:58]}  Bg4 {[%clk 0:02:55]} 11. Qf2 {[%clk 0:02:59]}  Bd7 {[%clk 0:02:54]} 12. O-O-O {[%clk 0:02:46]}  Qe7 {[%clk 0:02:54]} 13. Nf5 {[%clk 0:02:38]}  Bxf5 {[%clk 0:02:54]} 14. Qxf5 {[%clk 0:02:39]}  Ba3 {[%clk 0:02:54]} 15. g4 {[%clk 0:02:26]}  a5 {[%clk 0:02:47]} 16. Rhf1 {[%clk 0:02:13]}  a4 {[%clk 0:02:38]} 17. g5 {[%clk 0:01:51]}  Nd5 {[%clk 0:02:31]} 18. Nxd5 {[%clk 0:01:37]}  cxd5 {[%clk 0:02:15]} 19. Qxd5 {[%clk 0:01:37]}  Bxb2+ {[%clk 0:02:13]} 20. Kxb2 {[%clk 0:01:37]}  axb3 {[%clk 0:02:14]} 21. axb3 {[%clk 0:00:57]}  Red8 {[%clk 0:02:03]} 22. Qc4 {[%clk 0:00:56]}  Qa3+ {[%clk 0:01:44]} 23. Kc3 {[%clk 0:00:55]}  Qa5+ {[%clk 0:01:44]} 24. Kb2 {[%clk 0:00:42]}  Qa3+ {[%clk 0:01:42]} 25. Kc3 {[%clk 0:00:42]}  Qa5+ {[%clk 0:01:30]} 26. Kb2 {[%clk 0:00:42]}  Qa2+ {[%clk 0:01:30]} 27. Kc3 {[%clk 0:00:42]}  Qa5+ {[%clk 0:00:50]} 1/2-1/2


[Site "https://www.chess.com"]

[Event "Titled Tuesday Blitz August 31 2021"]
[White "Tanenbaum, Zachary"]
[Black "Brunello, Marina"]
[WhiteFideId "2060850"]
[BlackFideId "822590"]
[WhiteElo "2165"]
[BlackElo "2328"]
[Result "0-1"]
[Round "09"]
[TimeControl "180+1"]
[Date "2021.08.31"]
[WhiteClock "0:00:12"]
[BlackClock "0:00:55"]

1. e4 {[%clk 0:02:59]}  c5 {[%clk 0:02:59]} 2. Nf3 {[%clk 0:02:59]}  d6 {[%clk 0:02:58]} 3. d4 {[%clk 0:02:59]}  cxd4 {[%clk 0:02:58]} 4. Nxd4 {[%clk 0:03:00]}  Nf6 {[%clk 0:02:58]} 5. Nc3 {[%clk 0:03:01]}  a6 {[%clk 0:02:58]} 6. Be3 {[%clk 0:03:01]}  e5 {[%clk 0:02:56]} 7. Nb3 {[%clk 0:03:01]}  Be7 {[%clk 0:02:55]} 8. h3 {[%clk 0:03:01]}  Nc6 {[%clk 0:02:32]} 9. f4 {[%clk 0:03:01]}  b5 {[%clk 0:02:31]} 10. Qf3 {[%clk 0:02:56]}  Bb7 {[%clk 0:02:27]} 11. O-O-O {[%clk 0:02:55]}  Qc7 {[%clk 0:02:14]} 12. Kb1 {[%clk 0:02:51]}  Rc8 {[%clk 0:02:12]} 13. g4 {[%clk 0:02:34]}  exf4 {[%clk 0:02:12]} 14. Bxf4 {[%clk 0:02:35]}  Ne5 {[%clk 0:02:12]} 15. Bxe5 {[%clk 0:02:17]}  dxe5 {[%clk 0:02:11]} 16. g5 {[%clk 0:02:18]}  Nxe4 {[%clk 0:02:06]} 17. Rh2 {[%clk 0:01:20]}  Nd2+ {[%clk 0:01:56]} 18. Nxd2 {[%clk 0:01:20]}  Bxf3 {[%clk 0:01:56]} 19. Nxf3 {[%clk 0:01:21]}  e4 {[%clk 0:01:56]} 20. Nxe4 {[%clk 0:01:20]}  O-O {[%clk 0:01:53]} 21. Bd3 {[%clk 0:01:15]}  Rfd8 {[%clk 0:01:31]} 22. h4 {[%clk 0:01:13]}  a5 {[%clk 0:01:24]} 23. h5 {[%clk 0:01:11]}  a4 {[%clk 0:01:24]} 24. g6 {[%clk 0:01:10]}  fxg6 {[%clk 0:01:23]} 25. hxg6 {[%clk 0:01:11]}  h6 {[%clk 0:01:24]} 26. Re2 {[%clk 0:00:36]}  a3 {[%clk 0:01:22]} 27. b3 {[%clk 0:00:31]}  Rf8 {[%clk 0:01:20]} 28. Nd4 {[%clk 0:00:26]}  Qe5 {[%clk 0:01:03]} 29. c3 {[%clk 0:00:21]}  b4 {[%clk 0:01:02]} 30. cxb4 {[%clk 0:00:18]}  Qxd4 {[%clk 0:00:56]} 31. Bc4+ {[%clk 0:00:18]}  Rxc4 {[%clk 0:00:57]} 32. Rxd4 {[%clk 0:00:18]}  Rxd4 {[%clk 0:00:57]} 33. Kc2 {[%clk 0:00:16]}  Bxb4 {[%clk 0:00:56]} 34. Ng3 {[%clk 0:00:12]}  Rc8+ {[%clk 0:00:55]} 35. Kb1 {[%clk 0:00:12]}  Rd1# {[%clk 0:00:55]} 0-1


[Site "https://www.chess.com"]

[Event "Titled Tuesday Blitz August 31 2021"]
[White "Tarigan, Gilbert Elroy"]
[Black "Droin, Augustin"]
[WhiteFideId "7108133"]
[BlackFideId "45105987"]
[WhiteElo "1908"]
[BlackElo "2466"]
[Result "1-0"]
[Round "09"]
[TimeControl "180+1"]
[Date "2021.08.31"]
[WhiteClock "0:00:04"]
[BlackClock "0:00:02"]

1. e4 {[%clk 0:03:00]}  c5 {[%clk 0:02:57]} 2. Nf3 {[%clk 0:02:59]}  Nc6 {[%clk 0:02:55]} 3. d4 {[%clk 0:02:59]}  cxd4 {[%clk 0:02:55]} 4. Nxd4 {[%clk 0:03:00]}  Nf6 {[%clk 0:02:55]} 5. Nc3 {[%clk 0:03:00]}  e5 {[%clk 0:02:55]} 6. Ndb5 {[%clk 0:03:00]}  d6 {[%clk 0:02:56]} 7. Bg5 {[%clk 0:02:57]}  a6 {[%clk 0:02:56]} 8. Na3 {[%clk 0:02:57]}  b5 {[%clk 0:02:56]} 9. Nd5 {[%clk 0:02:56]}  Be7 {[%clk 0:02:56]} 10. Bxf6 {[%clk 0:02:55]}  Bxf6 {[%clk 0:02:57]} 11. c3 {[%clk 0:02:50]}  Bg5 {[%clk 0:02:57]} 12. Nc2 {[%clk 0:02:43]}  O-O {[%clk 0:02:56]} 13. a4 {[%clk 0:02:37]}  bxa4 {[%clk 0:02:57]} 14. Rxa4 {[%clk 0:02:23]}  a5 {[%clk 0:02:55]} 15. Bd3 {[%clk 0:02:15]}  Rb8 {[%clk 0:02:51]} 16. Ra2 {[%clk 0:02:11]}  Be6 {[%clk 0:02:49]} 17. O-O {[%clk 0:02:10]}  Kh8 {[%clk 0:02:47]} 18. Bc4 {[%clk 0:01:54]}  f5 {[%clk 0:02:10]} 19. exf5 {[%clk 0:01:55]}  Bxf5 {[%clk 0:02:10]} 20. Nce3 {[%clk 0:01:55]}  Be6 {[%clk 0:02:09]} 21. b3 {[%clk 0:01:46]}  Qd7 {[%clk 0:02:00]} 22. Qd3 {[%clk 0:01:43]}  Rbe8 {[%clk 0:01:31]} 23. Qe4 {[%clk 0:01:39]}  Bxe3 {[%clk 0:01:23]} 24. Nxe3 {[%clk 0:01:34]}  Ne7 {[%clk 0:01:09]} 25. Rxa5 {[%clk 0:01:17]}  Bxc4 {[%clk 0:01:08]} 26. Qxc4 {[%clk 0:01:11]}  Rf4 {[%clk 0:01:08]} 27. Qb5 {[%clk 0:01:08]}  Qc8 {[%clk 0:01:05]} 28. c4 {[%clk 0:00:56]}  Ref8 {[%clk 0:01:02]} 29. Ra6 {[%clk 0:00:52]}  Nf5 {[%clk 0:00:54]} 30. Nxf5 {[%clk 0:00:43]}  Qxf5 {[%clk 0:00:55]} 31. f3 {[%clk 0:00:30]}  Qd3 {[%clk 0:00:54]} 32. Qd5 {[%clk 0:00:09]}  Qe3+ {[%clk 0:00:41]} 33. Kh1 {[%clk 0:00:09]}  Qe2 {[%clk 0:00:42]} 34. Kg1 {[%clk 0:00:08]}  Rd4 {[%clk 0:00:24]} 35. Ra8 {[%clk 0:00:07]}  Qe3+ {[%clk 0:00:19]} 36. Kh1 {[%clk 0:00:07]}  Qf4 {[%clk 0:00:19]} 37. Rxf8+ {[%clk 0:00:05]}  Qxf8 {[%clk 0:00:20]} 38. Qc6 {[%clk 0:00:05]}  h6 {[%clk 0:00:20]} 39. h3 {[%clk 0:00:05]}  e4 {[%clk 0:00:20]} 40. b4 {[%clk 0:00:03]}  e3 {[%clk 0:00:19]} 41. Re1 {[%clk 0:00:03]}  Qf4 {[%clk 0:00:18]} 42. Qe8+ {[%clk 0:00:02]}  Kh7 {[%clk 0:00:18]} 43. Qxe3 {[%clk 0:00:03]}  Qf6 {[%clk 0:00:14]} 44. Qc3 {[%clk 0:00:03]}  g6 {[%clk 0:00:05]} 45. c5 {[%clk 0:00:03]}  dxc5 {[%clk 0:00:02]} 46. bxc5 {[%clk 0:00:04]}  Kg7 {[%clk 0:00:03]} 47. Re7+ {[%clk 0:00:04]}  Kf8 {[%clk 0:00:02]} 48. Re1 {[%clk 0:00:04]}  Qf4 {[%clk 0:00:01]} 49. c6 {[%clk 0:00:04]}  Rd8 {[%clk 0:00:01]} 50. Qc5+ {[%clk 0:00:04]}  Kf7 {[%clk 0:00:02]} 51. c7 {[%clk 0:00:04]}  Kg8 {[%clk 0:00:02]} 52. cxd8=Q+ {[%clk 0:00:04]} 1-0


[Site "https://www.chess.com"]

[Event "Titled Tuesday Blitz August 31 2021"]
[White "Viani Antonio Dcunha"]
[Black "Lomaia, Diana"]
[WhiteFideId "5027330"]
[BlackFideId "13612476"]
[WhiteElo "2366"]
[BlackElo "1742"]
[Result "1-0"]
[Round "09"]
[TimeControl "180+1"]
[Date "2021.08.31"]
[WhiteClock "0:00:19"]
[BlackClock "0:00:02"]

1. d4 {[%clk 0:03:00]}  Nf6 {[%clk 0:02:59]} 2. c4 {[%clk 0:03:00]}  g6 {[%clk 0:02:58]} 3. Nc3 {[%clk 0:02:59]}  Bg7 {[%clk 0:02:58]} 4. e4 {[%clk 0:02:59]}  d6 {[%clk 0:02:59]} 5. Nf3 {[%clk 0:02:59]}  O-O {[%clk 0:02:58]} 6. Be2 {[%clk 0:02:59]}  e5 {[%clk 0:02:59]} 7. O-O {[%clk 0:02:59]}  Nc6 {[%clk 0:02:58]} 8. d5 {[%clk 0:02:58]}  Ne7 {[%clk 0:02:58]} 9. b4 {[%clk 0:02:54]}  Nd7 {[%clk 0:02:58]} 10. Nd2 {[%clk 0:02:40]}  f5 {[%clk 0:02:57]} 11. Bf3 {[%clk 0:02:25]}  f4 {[%clk 0:02:56]} 12. Bg4 {[%clk 0:02:22]}  Nf6 {[%clk 0:02:55]} 13. Be6+ {[%clk 0:02:20]}  Bxe6 {[%clk 0:02:50]} 14. dxe6 {[%clk 0:02:21]}  c6 {[%clk 0:02:50]} 15. Nf3 {[%clk 0:02:17]}  h6 {[%clk 0:02:47]} 16. Bb2 {[%clk 0:02:06]}  g5 {[%clk 0:02:46]} 17. c5 {[%clk 0:02:06]}  dxc5 {[%clk 0:02:37]} 18. bxc5 {[%clk 0:02:04]}  Ng6 {[%clk 0:02:31]} 19. Qd6 {[%clk 0:02:00]}  Ne8 {[%clk 0:02:15]} 20. e7 {[%clk 0:01:26]}  Qxe7 {[%clk 0:01:22]} 21. Qxg6 {[%clk 0:01:23]}  Rf6 {[%clk 0:01:19]} 22. Qh5 {[%clk 0:01:20]}  Qxc5 {[%clk 0:01:19]} 23. h4 {[%clk 0:01:14]}  Rd6 {[%clk 0:01:05]} 24. Rad1 {[%clk 0:00:48]}  Nf6 {[%clk 0:00:50]} 25. Qg6 {[%clk 0:00:47]}  Rxd1 {[%clk 0:00:49]} 26. Nxd1 {[%clk 0:00:44]}  g4 {[%clk 0:00:23]} 27. Nxe5 {[%clk 0:00:42]}  g3 {[%clk 0:00:24]} 28. Nd7 {[%clk 0:00:38]}  gxf2+ {[%clk 0:00:17]} 29. Nxf2 {[%clk 0:00:37]}  Qe7 {[%clk 0:00:06]} 30. Nxf6+ {[%clk 0:00:35]}  Kf8 {[%clk 0:00:06]} 31. N2g4 {[%clk 0:00:28]}  Rd8 {[%clk 0:00:04]} 32. Nxh6 {[%clk 0:00:20]}  Bxh6 {[%clk 0:00:02]} 33. Qg8# {[%clk 0:00:19]} 1-0


[Site "https://www.chess.com"]